[Event "Early-Titled-Tuesday-Blitz-January-30-2024"]
[Site "Chess.com"]
[Date "2024.01.30"]
[Round "3"]
[White "cristiano78"]
[Black "DrCeltic"]
[Result "0-1"]
[WhiteElo "2266"]
[BlackElo "2565"]
[TimeControl "180+1"]
[EndTime "8:27:35 PST"]
[Termination "DrCeltic won by resignation"]

1. d4 {[%clk 0:03:00]} 1... Nf6 {[%clk 0:02:59.6]} 2. c4 {[%clk 0:02:59.6]} 2...
c6 {[%clk 0:03:00.1]} 3. Nf3 {[%clk 0:02:59.5]} 3... d5 {[%clk 0:03:01]} 4. Nc3
{[%clk 0:02:59.7]} 4... dxc4 {[%clk 0:03:01.5]} 5. a4 {[%clk 0:02:59.4]} 5...
Bf5 {[%clk 0:03:01.9]} 6. Bf4 {[%clk 0:02:55.6]} 6... e6 {[%clk 0:02:54]} 7. e3
{[%clk 0:02:53.2]} 7... Nd5 {[%clk 0:02:49.2]} 8. Bxb8 {[%clk 0:02:51.8]} 8...
Rxb8 {[%clk 0:02:44.6]} 9. Bxc4 {[%clk 0:02:51]} 9... Bb4 {[%clk 0:02:44.6]} 10.
Bxd5 {[%clk 0:02:46.5]} 10... exd5 {[%clk 0:02:38]} 11. O-O {[%clk 0:02:43.7]}
11... Bg4 {[%clk 0:02:38.2]} 12. h3 {[%clk 0:02:42.4]} 12... Bh5 {[%clk
0:02:38]} 13. g4 {[%clk 0:02:41]} 13... Bg6 {[%clk 0:02:38.2]} 14. Ne5 {[%clk
0:02:39.4]} 14... O-O {[%clk 0:02:38.1]} 15. Kg2 {[%clk 0:02:32.3]} 15... f6
{[%clk 0:02:10.3]} 16. Nxg6 {[%clk 0:02:31.7]} 16... hxg6 {[%clk 0:02:11.2]} 17.
Ne2 {[%clk 0:02:22.1]} 17... g5 {[%clk 0:02:07.9]} 18. Ng3 {[%clk 0:02:21.2]}
18... Bd6 {[%clk 0:02:04.7]} 19. Qd2 {[%clk 0:02:18.4]} 19... Bxg3 {[%clk
0:02:02.8]} 20. fxg3 {[%clk 0:02:18.1]} 20... Qe7 {[%clk 0:02:00.9]} 21. Rae1
{[%clk 0:02:13.9]} 21... Qe4+ {[%clk 0:02:00.7]} 22. Kh2 {[%clk 0:02:12.1]}
22... Rbe8 {[%clk 0:02:00.2]} 23. Rf2 {[%clk 0:02:11.1]} 23... Re7 {[%clk
0:01:57.3]} 24. Qc2 {[%clk 0:02:06.5]} 24... Rfe8 {[%clk 0:01:57.1]} 25. Qxe4
{[%clk 0:02:05.9]} 25... Rxe4 {[%clk 0:01:58]} 26. Rfe2 {[%clk 0:02:03.4]} 26...
Kf7 {[%clk 0:01:57.2]} 27. Kg2 {[%clk 0:02:02.8]} 27... Ke6 {[%clk 0:01:55.1]}
28. Kf3 {[%clk 0:02:02.8]} 28... Kd6 {[%clk 0:01:55.4]} 29. b4 {[%clk
0:01:58.8]} 29... Kc7 {[%clk 0:01:55.1]} 30. Rc2 {[%clk 0:01:55.8]} 30... Rxd4
{[%clk 0:01:51.7]} 31. b5 {[%clk 0:01:52.1]} 31... Rxa4 {[%clk 0:01:49.1]} 32.
bxc6 {[%clk 0:01:50.3]} 32... bxc6 {[%clk 0:01:50]} 33. Rec1 {[%clk 0:01:49.8]}
33... Re6 {[%clk 0:01:49.9]} 34. Rc5 {[%clk 0:01:48.8]} 34... Ra3 {[%clk
0:01:48.4]} 35. Rxd5 {[%clk 0:01:40.9]} 35... Raxe3+ {[%clk 0:01:47.9]} 36. Kf2
{[%clk 0:01:41.3]} 36... Re2+ {[%clk 0:01:48]} 37. Kf1 {[%clk 0:01:40.4]} 37...
Re1+ {[%clk 0:01:48.1]} 38. Rxe1 {[%clk 0:01:40.2]} 38... Rxe1+ {[%clk 0:01:49]}
39. Kxe1 {[%clk 0:01:39.4]} 39... cxd5 {[%clk 0:01:49.3]} 0-1

[Event "Early-Titled-Tuesday-Blitz-January-30-2024"]
[Site "Chess.com"]
[Date "2024.01.30"]
[Round "3"]
[White "Herzog2012"]
[Black "kleinebeer98"]
[Result "0-1"]
[WhiteElo "2561"]
[BlackElo "2860"]
[TimeControl "180+1"]
[EndTime "8:27:40 PST"]
[Termination "kleinebeer98 won by checkmate"]

1. e4 {[%clk 0:03:00.9]} 1... e5 {[%clk 0:03:00.1]} 2. Nf3 {[%clk 0:02:54.3]}
2... Nc6 {[%clk 0:03:00.7]} 3. d4 {[%clk 0:02:53.7]} 3... exd4 {[%clk
0:03:00.9]} 4. Nxd4 {[%clk 0:02:54.6]} 4... Nf6 {[%clk 0:03:01.6]} 5. Nxc6
{[%clk 0:02:53.6]} 5... bxc6 {[%clk 0:03:02.5]} 6. e5 {[%clk 0:02:54.5]} 6...
Qe7 {[%clk 0:03:01.9]} 7. Qe2 {[%clk 0:02:55.1]} 7... Nd5 {[%clk 0:03:01.8]} 8.
h4 {[%clk 0:02:55.8]} 8... d6 {[%clk 0:02:58]} 9. c4 {[%clk 0:02:54.5]} 9... Nb6
{[%clk 0:02:55.3]} 10. exd6 {[%clk 0:02:54.7]} 10... Qxe2+ {[%clk 0:02:54.5]}
11. Bxe2 {[%clk 0:02:55.6]} 11... Bxd6 {[%clk 0:02:54.1]} 12. Nc3 {[%clk
0:02:46.6]} 12... O-O {[%clk 0:02:43.5]} 13. b3 {[%clk 0:02:34]} 13... Re8
{[%clk 0:02:38.1]} 14. Be3 {[%clk 0:02:19.8]} 14... Be5 {[%clk 0:02:33.7]} 15.
Rc1 {[%clk 0:02:18]} 15... a5 {[%clk 0:02:32.2]} 16. O-O {[%clk 0:02:14.1]}
16... a4 {[%clk 0:02:32.8]} 17. Bf3 {[%clk 0:01:49.5]} 17... axb3 {[%clk
0:02:26.3]} 18. axb3 {[%clk 0:01:50.4]} 18... Bb7 {[%clk 0:02:13.9]} 19. Ne4
{[%clk 0:01:36.9]} 19... Nd7 {[%clk 0:02:14.6]} 20. Rfd1 {[%clk 0:01:36.4]}
20... Bc8 {[%clk 0:02:13.5]} 21. Nc3 {[%clk 0:00:57.2]} 21... Nb8 {[%clk
0:02:11.8]} 22. Bd4 {[%clk 0:00:43.5]} 22... Bf4 {[%clk 0:02:10.9]} 23. Ra1
{[%clk 0:00:43]} 23... Rxa1 {[%clk 0:02:04.6]} 24. Rxa1 {[%clk 0:00:43.9]} 24...
h6 {[%clk 0:02:00.9]} 25. Ra8 {[%clk 0:00:36.1]} 25... Re1# {[%clk 0:01:59.4]}
0-1

[Event "Early-Titled-Tuesday-Blitz-January-30-2024"]
[Site "Chess.com"]
[Date "2024.01.30"]
[Round "3"]
[White "carloseduar100"]
[Black "tandaleo"]
[Result "1-0"]
[WhiteElo "2288"]
[BlackElo "2512"]
[TimeControl "180+1"]
[EndTime "8:27:43 PST"]
[Termination "carloseduar100 won by resignation"]

1. d4 {[%clk 0:03:00.9]} 1... e6 {[%clk 0:02:51]} 2. Nf3 {[%clk 0:02:55.2]} 2...
f5 {[%clk 0:02:49.7]} 3. h3 {[%clk 0:02:53.6]} 3... Nf6 {[%clk 0:02:49.8]} 4. g4
{[%clk 0:02:53.7]} 4... d6 {[%clk 0:02:43.6]} 5. Nc3 {[%clk 0:02:52.6]} 5... Nc6
{[%clk 0:02:42.4]} 6. a3 {[%clk 0:02:51.7]} 6... Be7 {[%clk 0:02:34.4]} 7. Qd3
{[%clk 0:02:50.5]} 7... O-O {[%clk 0:02:30.2]} 8. gxf5 {[%clk 0:02:47.1]} 8...
exf5 {[%clk 0:02:30.2]} 9. Rg1 {[%clk 0:02:46.9]} 9... Qe8 {[%clk 0:02:29.2]}
10. Bg5 {[%clk 0:02:45.9]} 10... Nd8 {[%clk 0:02:19]} 11. O-O-O {[%clk
0:02:41.4]} 11... Nf7 {[%clk 0:02:19.2]} 12. h4 {[%clk 0:02:38.9]} 12... c6
{[%clk 0:02:14]} 13. Bh3 {[%clk 0:02:38.9]} 13... Ng4 {[%clk 0:02:05.5]} 14.
Bxg4 {[%clk 0:02:10.3]} 14... fxg4 {[%clk 0:02:04]} 15. Bxe7 {[%clk 0:02:10.4]}
15... Qxe7 {[%clk 0:02:02.2]} 16. Nd2 {[%clk 0:02:06.3]} 16... d5 {[%clk
0:01:58.1]} 17. f3 {[%clk 0:02:04.3]} 17... gxf3 {[%clk 0:01:57]} 18. Nxf3
{[%clk 0:02:02.9]} 18... Nd6 {[%clk 0:01:55.5]} 19. Kb1 {[%clk 0:01:52]} 19...
Bf5 {[%clk 0:01:55.3]} 20. Qd2 {[%clk 0:01:52.2]} 20... Nc4 {[%clk 0:01:52.8]}
21. Qh6 {[%clk 0:01:41.7]} 21... Ne3 {[%clk 0:01:37.4]} 22. Rxg7+ {[%clk
0:01:39.8]} 22... Qxg7 {[%clk 0:01:37.3]} 23. Qxe3 {[%clk 0:01:20.7]} 23... Bg4
{[%clk 0:01:34.5]} 24. Rg1 {[%clk 0:01:17.4]} 24... h5 {[%clk 0:01:34.2]} 25.
Ne5 {[%clk 0:01:16.7]} 25... Rf5 {[%clk 0:01:30.3]} 26. Nxg4 {[%clk 0:01:13.3]}
26... hxg4 {[%clk 0:01:30.4]} 27. Qe6+ {[%clk 0:01:11.7]} 27... Rf7 {[%clk
0:01:31]} 28. Rxg4 {[%clk 0:01:09.3]} 1-0

[Event "Early-Titled-Tuesday-Blitz-January-30-2024"]
[Site "Chess.com"]
[Date "2024.01.30"]
[Round "3"]
[White "garfield_pg"]
[Black "BocharovD"]
[Result "0-1"]
[WhiteElo "2466"]
[BlackElo "2843"]
[TimeControl "180+1"]
[EndTime "8:27:57 PST"]
[Termination "BocharovD won by resignation"]

1. d4 {[%clk 0:03:00.9]} 1... Nf6 {[%clk 0:02:56]} 2. Bf4 {[%clk 0:03:00.4]}
2... e6 {[%clk 0:02:54]} 3. e3 {[%clk 0:02:59.4]} 3... c5 {[%clk 0:02:52.9]} 4.
c3 {[%clk 0:02:53.6]} 4... Nc6 {[%clk 0:02:52.2]} 5. Nd2 {[%clk 0:02:51.9]} 5...
cxd4 {[%clk 0:02:45.1]} 6. exd4 {[%clk 0:02:50.4]} 6... Be7 {[%clk 0:02:45.1]}
7. h3 {[%clk 0:02:49.9]} 7... O-O {[%clk 0:02:44.4]} 8. Ngf3 {[%clk 0:02:50.6]}
8... b6 {[%clk 0:02:44.8]} 9. Bd3 {[%clk 0:02:50.1]} 9... Bb7 {[%clk 0:02:45.1]}
10. O-O {[%clk 0:02:50.1]} 10... d6 {[%clk 0:02:44.5]} 11. Re1 {[%clk 0:02:48]}
11... Rc8 {[%clk 0:02:44.2]} 12. Bh2 {[%clk 0:02:47.7]} 12... Re8 {[%clk
0:02:44.4]} 13. a4 {[%clk 0:02:47.9]} 13... Bf8 {[%clk 0:02:41.4]} 14. Nc4
{[%clk 0:02:42.9]} 14... Nd5 {[%clk 0:02:39.9]} 15. Qb3 {[%clk 0:02:35.9]} 15...
a6 {[%clk 0:02:34.4]} 16. Nfd2 {[%clk 0:02:22.7]} 16... f5 {[%clk 0:02:19.5]}
17. Ne3 {[%clk 0:02:14.7]} 17... Na5 {[%clk 0:02:03.6]} 18. Qa2 {[%clk
0:01:53.8]} 18... Kh8 {[%clk 0:02:02.2]} 19. Nxd5 {[%clk 0:01:20.9]} 19... Bxd5
{[%clk 0:02:01.3]} 20. c4 {[%clk 0:01:17.8]} 20... Bxg2 {[%clk 0:01:50.5]} 21.
Kxg2 {[%clk 0:00:46.4]} 21... Qg5+ {[%clk 0:01:48.8]} 22. Kf1 {[%clk 0:00:46.6]}
22... Qxd2 {[%clk 0:01:48]} 23. Rad1 {[%clk 0:00:44.2]} 23... Qb4 {[%clk
0:01:45]} 0-1

[Event "Early-Titled-Tuesday-Blitz-January-30-2024"]
[Site "Chess.com"]
[Date "2024.01.30"]
[Round "3"]
[White "ozen_metehan"]
[Black "Skatchkov_V"]
[Result "0-1"]
[WhiteElo "2442"]
[BlackElo "2617"]
[TimeControl "180+1"]
[EndTime "8:28:00 PST"]
[Termination "Skatchkov_V won by resignation"]

1. d4 {[%clk 0:02:57.7]} 1... Nf6 {[%clk 0:03:00.1]} 2. c4 {[%clk 0:02:56.3]}
2... e6 {[%clk 0:03:00.5]} 3. Nf3 {[%clk 0:02:54.6]} 3... d5 {[%clk 0:02:59.8]}
4. g3 {[%clk 0:02:54.7]} 4... h6 {[%clk 0:02:55.4]} 5. Bg2 {[%clk 0:02:54.2]}
5... Bd6 {[%clk 0:02:55.3]} 6. O-O {[%clk 0:02:52]} 6... O-O {[%clk 0:02:55.5]}
7. Nc3 {[%clk 0:02:47.9]} 7... Nc6 {[%clk 0:02:55.7]} 8. b3 {[%clk 0:02:39.8]}
8... b6 {[%clk 0:02:51.6]} 9. cxd5 {[%clk 0:02:31.8]} 9... exd5 {[%clk
0:02:52.5]} 10. a3 {[%clk 0:02:21.3]} 10... Re8 {[%clk 0:02:41.4]} 11. Nh4
{[%clk 0:02:19.7]} 11... Ne7 {[%clk 0:02:36.9]} 12. Nb5 {[%clk 0:02:17.6]} 12...
Ba6 {[%clk 0:02:32.7]} 13. Nxd6 {[%clk 0:02:16.2]} 13... cxd6 {[%clk 0:02:33.6]}
14. Re1 {[%clk 0:02:14.5]} 14... Rc8 {[%clk 0:02:33.2]} 15. Nf3 {[%clk
0:02:11.2]} 15... Ne4 {[%clk 0:02:31.7]} 16. Bb2 {[%clk 0:02:09.7]} 16... Nc3
{[%clk 0:02:28]} 17. Qd2 {[%clk 0:02:08.7]} 17... Ne4 {[%clk 0:02:23.9]} 18. Qd1
{[%clk 0:02:04.2]} 18... Nf5 {[%clk 0:02:15.4]} 19. e3 {[%clk 0:01:54.5]} 19...
Qf6 {[%clk 0:02:15.6]} 20. Rc1 {[%clk 0:01:45.3]} 20... g5 {[%clk 0:02:10.9]}
21. Nd2 {[%clk 0:01:35.3]} 21... Nxf2 {[%clk 0:01:41.7]} 22. Kxf2 {[%clk
0:01:23.3]} 22... Rxc1 {[%clk 0:01:31.3]} 23. Bxc1 {[%clk 0:01:19.7]} 23...
Nxe3+ {[%clk 0:01:10.8]} 0-1

[Event "Early-Titled-Tuesday-Blitz-January-30-2024"]
[Site "Chess.com"]
[Date "2024.01.30"]
[Round "3"]
[White "MalyDominator"]
[Black "Timerkhanov"]
[Result "1-0"]
[WhiteElo "2495"]
[BlackElo "2654"]
[TimeControl "180+1"]
[EndTime "8:28:07 PST"]
[Termination "MalyDominator won by resignation"]

1. e4 {[%clk 0:03:00.9]} 1... c5 {[%clk 0:02:59.9]} 2. Nf3 {[%clk 0:03:00.1]}
2... d6 {[%clk 0:03:00.4]} 3. d4 {[%clk 0:03:00]} 3... cxd4 {[%clk 0:03:01.3]}
4. Nxd4 {[%clk 0:03:00.3]} 4... Nf6 {[%clk 0:03:01.9]} 5. Nc3 {[%clk 0:03:00.8]}
5... Bd7 {[%clk 0:02:59.7]} 6. f3 {[%clk 0:02:59.4]} 6... e5 {[%clk 0:02:59.6]}
7. Nb3 {[%clk 0:02:59.1]} 7... a5 {[%clk 0:02:55.7]} 8. a4 {[%clk 0:02:57.9]}
8... Na6 {[%clk 0:02:54.3]} 9. Be3 {[%clk 0:02:56.4]} 9... Nb4 {[%clk
0:02:53.2]} 10. Bb5 {[%clk 0:02:49.9]} 10... Be7 {[%clk 0:02:49.7]} 11. O-O
{[%clk 0:02:49]} 11... O-O {[%clk 0:02:49.3]} 12. Qd2 {[%clk 0:02:49.4]} 12...
Be6 {[%clk 0:02:48.6]} 13. Rad1 {[%clk 0:02:48.4]} 13... Rc8 {[%clk 0:02:46.6]}
14. Qf2 {[%clk 0:02:41.1]} 14... Bxb3 {[%clk 0:02:22.3]} 15. cxb3 {[%clk
0:02:39.7]} 15... d5 {[%clk 0:02:21.7]} 16. exd5 {[%clk 0:02:00]} 16... Nfxd5
{[%clk 0:02:19.3]} 17. Nxd5 {[%clk 0:01:54.4]} 17... Nxd5 {[%clk 0:02:18.4]} 18.
Kh1 {[%clk 0:01:54.9]} 18... b6 {[%clk 0:00:48]} 19. Bc4 {[%clk 0:01:49.3]}
19... Nxe3 {[%clk 0:00:46.3]} 20. Rxd8 {[%clk 0:01:46.6]} 20... Nxf1 {[%clk
0:00:44.2]} 21. Rxf8+ {[%clk 0:01:44.9]} 21... Kxf8 {[%clk 0:00:43.9]} 22. Qxf1
{[%clk 0:01:44.8]} 22... Bc5 {[%clk 0:00:43.7]} 23. Qd3 {[%clk 0:01:43]} 23...
Ke7 {[%clk 0:00:40.5]} 24. Qd5 {[%clk 0:01:39.9]} 24... Rd8 {[%clk 0:00:41]} 25.
Qxf7+ {[%clk 0:01:40]} 25... Kd6 {[%clk 0:00:41]} 26. h4 {[%clk 0:01:38.1]}
26... Be3 {[%clk 0:00:39.6]} 27. Qd5+ {[%clk 0:01:33.9]} 1-0

[Event "Early-Titled-Tuesday-Blitz-January-30-2024"]
[Site "Chess.com"]
[Date "2024.01.30"]
[Round "3"]
[White "Orujov2008"]
[Black "kamilianin235"]
[Result "1-0"]
[WhiteElo "2721"]
[BlackElo "2505"]
[TimeControl "180+1"]
[EndTime "8:28:13 PST"]
[Termination "Orujov2008 won by resignation"]

1. e4 {[%clk 0:03:00.9]} 1... c5 {[%clk 0:02:54.7]} 2. Nf3 {[%clk 0:03:00.8]}
2... e6 {[%clk 0:02:54.1]} 3. d4 {[%clk 0:03:01]} 3... cxd4 {[%clk 0:02:55]} 4.
Nxd4 {[%clk 0:03:01.6]} 4... Nc6 {[%clk 0:02:54.8]} 5. Nc3 {[%clk 0:02:58.7]}
5... Qc7 {[%clk 0:02:53.8]} 6. f4 {[%clk 0:02:54]} 6... a6 {[%clk 0:02:51.4]} 7.
Nxc6 {[%clk 0:02:52.7]} 7... Qxc6 {[%clk 0:02:35.9]} 8. Bd3 {[%clk 0:02:52.2]}
8... b5 {[%clk 0:02:34.2]} 9. Qe2 {[%clk 0:02:51.9]} 9... Bb7 {[%clk 0:02:26.6]}
10. Bd2 {[%clk 0:02:51.4]} 10... Qc7 {[%clk 0:02:25.2]} 11. a3 {[%clk
0:02:47.2]} 11... Nf6 {[%clk 0:02:24.5]} 12. O-O-O {[%clk 0:02:40.2]} 12... Bc5
{[%clk 0:02:13.8]} 13. e5 {[%clk 0:02:34.4]} 13... Nd5 {[%clk 0:02:12.6]} 14.
Nxd5 {[%clk 0:02:34.8]} 14... Bxd5 {[%clk 0:02:13.2]} 15. f5 {[%clk 0:02:35.4]}
15... g6 {[%clk 0:02:12.4]} 16. fxe6 {[%clk 0:02:23.4]} 16... dxe6 {[%clk
0:01:58.8]} 17. Rhf1 {[%clk 0:02:23.4]} 17... O-O-O {[%clk 0:01:59.1]} 18. Be3
{[%clk 0:02:09.2]} 18... Bxe3+ {[%clk 0:01:45.8]} 19. Qxe3 {[%clk 0:02:10.1]}
19... Bxg2 {[%clk 0:01:45.7]} 20. Rf2 {[%clk 0:02:10.2]} 20... Bd5 {[%clk
0:01:41.7]} 21. Rdf1 {[%clk 0:02:06.5]} 21... Rd7 {[%clk 0:01:38.4]} 22. a4
{[%clk 0:02:01.2]} 22... Bc4 {[%clk 0:01:30.5]} 23. Bxc4 {[%clk 0:01:44.8]}
23... bxc4 {[%clk 0:01:31.4]} 24. b3 {[%clk 0:01:45.1]} 24... cxb3 {[%clk
0:01:27.6]} 25. Kb2 {[%clk 0:01:45.3]} 25... Rd5 {[%clk 0:01:24.6]} 26. cxb3
{[%clk 0:01:42.3]} 26... Qxe5+ {[%clk 0:01:23.7]} 27. Qxe5 {[%clk 0:01:40.5]}
27... Rxe5 {[%clk 0:01:24.6]} 28. Rxf7 {[%clk 0:01:41.1]} 28... Re2+ {[%clk
0:00:59]} 29. Ka3 {[%clk 0:01:39.4]} 29... Rxh2 {[%clk 0:00:59.6]} 30. Ra7
{[%clk 0:01:35.5]} 30... Rc2 {[%clk 0:00:47.1]} 31. Ra8+ {[%clk 0:01:34]} 1-0

[Event "Early-Titled-Tuesday-Blitz-January-30-2024"]
[Site "Chess.com"]
[Date "2024.01.30"]
[Round "3"]
[White "EsmeraldasAnderson03"]
[Black "yaguigor"]
[Result "1-0"]
[WhiteElo "2420"]
[BlackElo "2584"]
[TimeControl "180+1"]
[EndTime "8:28:14 PST"]
[Termination "EsmeraldasAnderson03 won by resignation"]

1. d4 {[%clk 0:02:57.9]} 1... d5 {[%clk 0:03:00]} 2. c4 {[%clk 0:02:58.1]} 2...
c6 {[%clk 0:02:59.7]} 3. cxd5 {[%clk 0:02:57.4]} 3... cxd5 {[%clk 0:02:59.1]} 4.
Nc3 {[%clk 0:02:58.3]} 4... Nf6 {[%clk 0:02:58.3]} 5. Nf3 {[%clk 0:02:58.9]}
5... Nc6 {[%clk 0:02:58.2]} 6. Bf4 {[%clk 0:02:59.2]} 6... Bf5 {[%clk
0:02:58.2]} 7. e3 {[%clk 0:02:59.6]} 7... e6 {[%clk 0:02:58.5]} 8. Bd3 {[%clk
0:03:00.4]} 8... Bxd3 {[%clk 0:02:57.1]} 9. Qxd3 {[%clk 0:03:01.3]} 9... Be7
{[%clk 0:02:55.1]} 10. O-O {[%clk 0:03:00.9]} 10... O-O {[%clk 0:02:54.5]} 11.
h3 {[%clk 0:03:01.2]} 11... Qa5 {[%clk 0:02:44.6]} 12. a3 {[%clk 0:02:59.1]}
12... Rfc8 {[%clk 0:02:43.5]} 13. b4 {[%clk 0:02:59.2]} 13... Qd8 {[%clk
0:02:43.5]} 14. Rfc1 {[%clk 0:02:57.7]} 14... Qd7 {[%clk 0:02:29.4]} 15. Rc2
{[%clk 0:02:51.1]} 15... a5 {[%clk 0:02:17.2]} 16. b5 {[%clk 0:02:51.1]} 16...
Na7 {[%clk 0:02:12.3]} 17. a4 {[%clk 0:02:51.2]} 17... Qe8 {[%clk 0:02:05.7]}
18. Ne5 {[%clk 0:02:35.7]} 18... Nd7 {[%clk 0:02:02.5]} 19. Nxd7 {[%clk
0:02:14]} 19... Qxd7 {[%clk 0:02:03.4]} 20. Rac1 {[%clk 0:02:07.3]} 20... Ba3
{[%clk 0:01:57.6]} 21. Ra1 {[%clk 0:02:06.9]} 21... Bb4 {[%clk 0:01:57.3]} 22.
Rac1 {[%clk 0:02:07.1]} 22... Bxc3 {[%clk 0:01:55.3]} 23. Rxc3 {[%clk
0:02:07.2]} 23... Rxc3 {[%clk 0:01:54.4]} 24. Qxc3 {[%clk 0:02:08.1]} 24... Rc8
{[%clk 0:01:52.8]} 25. Qb2 {[%clk 0:02:07]} 25... b6 {[%clk 0:01:47.2]} 26. Rc3
{[%clk 0:02:04.8]} 26... Rc4 {[%clk 0:01:44.6]} 27. Rxc4 {[%clk 0:01:53.6]}
27... dxc4 {[%clk 0:01:44]} 28. Qc3 {[%clk 0:01:53.8]} 28... Qc8 {[%clk
0:01:33.4]} 29. e4 {[%clk 0:01:47.9]} 29... h6 {[%clk 0:01:29.7]} 30. d5 {[%clk
0:01:38.6]} 30... exd5 {[%clk 0:01:29.6]} 31. exd5 {[%clk 0:01:39.5]} 31... Qc5
{[%clk 0:01:29.2]} 32. d6 {[%clk 0:01:38.3]} 32... Qd5 {[%clk 0:01:27.9]} 33.
Qe3 {[%clk 0:01:26.2]} 33... g5 {[%clk 0:01:23.1]} 34. Qe8+ {[%clk 0:01:25.5]}
34... Kg7 {[%clk 0:01:22.3]} 35. d7 {[%clk 0:01:26]} 1-0

[Event "Early-Titled-Tuesday-Blitz-January-30-2024"]
[Site "Chess.com"]
[Date "2024.01.30"]
[Round "3"]
[White "toninhojit"]
[Black "Bkmzzzzz"]
[Result "1-0"]
[WhiteElo "2580"]
[BlackElo "2343"]
[TimeControl "180+1"]
[EndTime "8:28:17 PST"]
[Termination "toninhojit won by resignation"]

1. d4 {[%clk 0:03:00.9]} 1... d5 {[%clk 0:02:58.8]} 2. c4 {[%clk 0:03:01.2]}
2... dxc4 {[%clk 0:02:59.7]} 3. e3 {[%clk 0:03:01.1]} 3... Nf6 {[%clk
0:02:58.8]} 4. Nf3 {[%clk 0:03:01.3]} 4... e6 {[%clk 0:02:58.4]} 5. Bxc4 {[%clk
0:03:01.9]} 5... c5 {[%clk 0:02:59]} 6. O-O {[%clk 0:03:02.4]} 6... a6 {[%clk
0:02:58.5]} 7. b3 {[%clk 0:03:02.5]} 7... Be7 {[%clk 0:02:56.3]} 8. Bb2 {[%clk
0:03:02.4]} 8... Nc6 {[%clk 0:02:55.7]} 9. Nbd2 {[%clk 0:03:01.8]} 9... O-O
{[%clk 0:02:52.5]} 10. a4 {[%clk 0:02:57.5]} 10... b6 {[%clk 0:02:50.6]} 11. Qe2
{[%clk 0:02:57]} 11... Bb7 {[%clk 0:02:48.3]} 12. Rfd1 {[%clk 0:02:56.8]} 12...
cxd4 {[%clk 0:02:45.7]} 13. Nxd4 {[%clk 0:02:54.4]} 13... Nxd4 {[%clk
0:01:48.4]} 14. Bxd4 {[%clk 0:02:55.3]} 14... Nd7 {[%clk 0:01:37]} 15. Nf3
{[%clk 0:02:51.2]} 15... Qc7 {[%clk 0:01:31.2]} 16. Rac1 {[%clk 0:02:50.1]}
16... Qb8 {[%clk 0:01:24]} 17. Bxg7 {[%clk 0:02:38.2]} 17... Kxg7 {[%clk
0:01:24]} 18. Rxd7 {[%clk 0:02:38.2]} 18... Bf6 {[%clk 0:01:23]} 19. Bxe6 {[%clk
0:02:27.9]} 19... Bc8 {[%clk 0:00:44.1]} 20. Rxc8 {[%clk 0:02:14.8]} 20... Qxc8
{[%clk 0:00:32.2]} 21. Rxf7+ {[%clk 0:02:14.4]} 21... Rxf7 {[%clk 0:00:32.7]}
22. Bxc8 {[%clk 0:02:15]} 22... Rxc8 {[%clk 0:00:33.4]} 23. g3 {[%clk
0:02:15.6]} 23... a5 {[%clk 0:00:32.6]} 24. h4 {[%clk 0:02:09.1]} 24... Rc3
{[%clk 0:00:32.5]} 25. Qb5 {[%clk 0:02:04.1]} 25... Bd8 {[%clk 0:00:30.1]} 26.
Ne5 {[%clk 0:01:58.2]} 26... Rc5 {[%clk 0:00:27.1]} 27. Qe8 {[%clk 0:01:49.1]}
27... Rxe5 {[%clk 0:00:21.8]} 28. Qxe5+ {[%clk 0:01:48.4]} 1-0

[Event "Early-Titled-Tuesday-Blitz-January-30-2024"]
[Site "Chess.com"]
[Date "2024.01.30"]
[Round "3"]
[White "maurovargas01"]
[Black "KanalSzachowy"]
[Result "0-1"]
[WhiteElo "1836"]
[BlackElo "2341"]
[TimeControl "180+1"]
[EndTime "8:28:17 PST"]
[Termination "KanalSzachowy won on time"]

1. e4 {[%clk 0:01:18.7]} 1... c5 {[%clk 0:02:52.8]} 2. Nc3 {[%clk 0:01:18.5]}
2... a6 {[%clk 0:02:51.8]} 3. f4 {[%clk 0:01:19.4]} 3... b5 {[%clk 0:02:51.4]}
4. Nf3 {[%clk 0:01:20.3]} 4... Bb7 {[%clk 0:02:51.5]} 5. d3 {[%clk 0:01:11.6]}
5... e6 {[%clk 0:02:50.1]} 6. g4 {[%clk 0:01:04.8]} 6... d5 {[%clk 0:02:48.6]}
7. e5 {[%clk 0:01:04.2]} 7... Ne7 {[%clk 0:02:43.9]} 8. Bg2 {[%clk 0:01:03.2]}
8... h5 {[%clk 0:02:41.1]} 9. g5 {[%clk 0:00:57.8]} 9... Nf5 {[%clk 0:02:38.3]}
10. O-O {[%clk 0:00:57.9]} 10... h4 {[%clk 0:02:34.6]} 11. h3 {[%clk 0:00:52.1]}
11... Nc6 {[%clk 0:02:27.9]} 12. Ne2 {[%clk 0:00:41.3]} 12... Qb6 {[%clk
0:02:04.9]} 13. Kh2 {[%clk 0:00:39]} 13... g6 {[%clk 0:02:02.9]} 14. c3 {[%clk
0:00:38.5]} 14... Be7 {[%clk 0:02:00.2]} 15. Qe1 {[%clk 0:00:31.4]} 15... d4
{[%clk 0:01:57.9]} 16. Nd2 {[%clk 0:00:23.1]} 16... Ne3 {[%clk 0:01:55]} 17. Rg1
{[%clk 0:00:16.2]} 17... Nc2 {[%clk 0:01:55.1]} 18. Qd1 {[%clk 0:00:15.2]} 18...
Nxa1 {[%clk 0:01:54.3]} 19. Ne4 {[%clk 0:00:15]} 19... Rd8 {[%clk 0:01:52.9]}
0-1